bitfinex-derivatives/quotes_ETHF0:USTF0_20251126
["timestamp","ask_amount","ask_price","bid_price","bid_amount"]
[1764181468998,0.44146609,3036.0,3035.2,0.63594385]
[1764181469200,0.4737,3035.5,3035.4,0.17300273]
[1764181469587,0.4737,3035.5,3035.4,0.17548647]
[1764181470001,0.44146609,3036.0,3035.5,0.2845]
[1764181470200,0.4737,3035.9,3035.8,0.17300273]
[1764181471601,0.4737,3035.5,3035.4,0.00248374]
[1764181471801,0.44146609,3036.0,3035.4,0.46048374]
[1764181472006,0.4737,3035.9,3035.8,0.458]
[1764181472509,0.4737,3035.5,3035.4,0.00248374]
[1764181472697,0.91516609,3036.0,3035.9,0.17300273]
[1764181472998,0.4737,3035.5,3035.4,0.46048374]
[1764181473204,0.91216,3035.5,3035.4,0.00248374]
[1764181473403,0.91216,3035.5,3035.4,0.63348647]
[1764181473404,0.63846,3035.5,3035.4,0.63348647]
[1764181473703,0.27673609,3036.0,3035.5,0.2845]
[1764181473902,0.4737,3035.9,3035.8,0.17300273]
[1764181474204,0.4737,3035.6,3035.5,0.2845]
[1764181474406,0.4737,3035.6,3035.4,0.00248374]
[1764181474611,0.44146609,3036.0,3035.5,0.17300273]
[1764181474802,0.4737,3035.6,3035.4,0.00248374]
[1764181475000,0.4737,3035.6,3035.5,0.17300273]
[1764181475198,0.4737,3035.6,3035.5,0.63100273]
[1764181476105,0.00303609,3036.0,3035.9,0.4882]
[1764181476302,0.00303609,3036.0,3035.9,0.66120273]
[1764181476812,0.00494112,3036.3,3036.2,0.4882]
[1764181477110,0.00494112,3036.3,3036.2,0.66120273]
[1764181477705,0.00740709,3036.3,3036.2,0.66120273]
[1764181483913,0.45390709,3036.3,3036.2,0.17300273]
[1764181484114,0.45390709,3036.3,3036.2,0.66120273]
[1764181485916,0.00740709,3036.3,3036.2,0.66120273]
[1764181486608,0.16465,3037.4,3036.7,0.4882]
[1764181486808,0.4465,3037.0,3036.9,0.17300273]
[1764181487117,0.4465,3037.0,3036.8,0.17300273]
[1764181487309,0.4465,3037.0,3036.9,0.66120273]
[1764181487503,0.00494112,3037.3,3037.2,0.4882]
[1764181487815,0.00494112,3037.3,3037.2,0.66120273]
[1764181487816,0.45499016,3037.3,3037.2,0.66120273]
[1764181488018,0.45499016,3037.3,3037.2,0.17300273]
[1764181488307,0.61965016,3037.3,3037.2,0.17300273]
[1764181488711,0.4465,3036.7,3036.6,0.00494112]
[1764181488901,0.4465,3036.7,3036.6,0.49314112]
[1764181489108,0.4465,3036.7,3036.6,0.66614385]
[1764181489308,0.4465,3036.7,3036.6,0.17794385]
[1764181489807,0.4465,3036.7,3036.6,0.66614385]
[1764181490110,0.16469,3036.8,3036.7,0.4882]
[1764181490410,0.17315016,3037.3,3036.7,0.66120273]
[1764181490714,0.61965016,3037.3,3037.2,0.17300273]
[1764181491209,0.16467,3037.1,3036.6,0.00494112]
[1764181491409,0.4465,3036.7,3036.6,0.00494112]
[1764181491814,0.4465,3036.7,3036.6,0.17794385]
[1764181492520,0.61119,3036.7,3036.6,0.17794385]
[1764181492817,0.16471,3036.4,3035.5,0.2852]
[1764181493014,1.18412419,3036.8,3035.5,0.2852]
[1764181493715,1.34880419,3036.9,3036.8,0.4882]
[1764181493912,1.18412419,3037.1,3036.8,0.4882]
[1764181494119,1.77626413,3037.3,3036.8,0.4882]
[1764181494120,1.19261435,3037.3,3036.8,0.4882]
[1764181494312,0.00849016,3037.3,3036.8,0.4882]
[1764181494710,0.45499016,3037.3,3036.5,0.2852]
[1764181495224,0.16467,3037.1,3036.5,0.2852]
[1764181496618,0.4465,3036.6,3036.5,0.2852]
[1764181496824,0.4465,3036.6,3036.0,0.2852]
[1764181497416,0.4465,3036.6,3036.5,0.7734]
[1764181497612,0.4465,3036.6,3036.0,0.2852]
[1764181499017,0.4465,3036.6,3036.5,0.4882]
[1764181499318,0.4465,3036.6,3036.5,0.7734]
[1764181499527,0.4465,3036.6,3036.5,0.4882]
[1764181499716,0.4465,3036.6,3036.0,0.2852]
[1764181501120,0.4465,3036.1,3035.8,0.00494112]
[1764181501417,1.18412419,3036.8,3036.2,0.4882]
[1764181501622,1.18412419,3036.9,3036.2,0.4882]
[1764181502014,1.18412419,3036.8,3036.2,0.4882]
[1764181502222,0.4465,3036.3,3036.2,0.4882]
[1764181502811,0.4465,3035.9,3035.8,0.00494112]
[1764181503416,0.4465,3035.9,3035.8,0.49314112]
[1764181503617,0.16471,3036.4,3035.8,0.49314112]
[1764181504720,0.4465,3035.9,3035.8,0.49314112]
[1764181506024,0.4465,3035.9,3035.8,0.00494112]
[1764181506325,1.18412419,3036.3,3035.8,0.47304112]
[1764181506519,1.18412419,3036.4,3035.8,0.47304112]
[1764181506727,1.34883419,3036.4,3035.8,0.47304112]
[1764181507025,0.4512,3035.9,3035.8,0.47304112]
[1764181507327,0.4512,3035.9,3035.8,0.00494112]
[1764181507724,0.16473,3036.1,3036.0,0.7582]
[1764181508119,1.18412419,3036.4,3036.0,0.7582]
[1764181508328,1.34881419,3036.8,3036.4,0.4681]
[1764181508824,0.16471,3036.4,3035.8,0.47304112]
[1764181509233,0.16471,3036.3,3035.8,0.47304112]
[1764181509530,0.4512,3035.9,3035.8,0.47304112]
[1764181509926,0.16472,3036.2,3035.8,0.47304112]
[1764181510832,0.61592,3036.2,3036.1,0.4681]
[1764181511033,0.16472,3036.2,3036.1,0.4681]
[1764181511629,0.61592,3036.2,3036.1,0.4681]
[1764181511924,0.16472,3036.2,3036.1,0.4681]
[1764181512527,1.34881419,3036.7,3036.1,0.4681]
[1764181512734,0.16469,3036.7,3036.1,0.4681]
[1764181513034,0.1647,3036.6,3036.1,0.4681]
[1764181513229,1.18412419,3036.7,3036.6,0.4681]
[1764181513430,0.4512,3036.7,3036.6,0.4681]
[1764181515336,0.16468,3036.9,3036.8,0.4681]
[1764181515834,0.61588,3036.9,3036.8,0.4681]
[1764181516728,0.61588,3036.9,3036.5,0.2901]
[1764181516928,0.61588,3036.9,3036.8,0.4681]
[1764181517642,0.16468,3036.9,3036.8,0.4681]
[1764181518439,0.4512,3036.6,3036.5,0.7582]
[1764181518826,2.93331871,3036.9,3036.5,0.7582]
[1764181518827,0.16467,3037.2,3036.5,0.7582]
[1764181520036,0.16467,3037.1,3036.5,0.7582]
[1764181520636,0.61587,3037.1,3037.0,0.7582]
[1764181520836,0.61587,3037.1,3036.5,0.2901]
[1764181521039,0.4512,3036.6,3036.5,0.4681]
[1764181521242,0.4512,3036.6,3036.5,0.7582]
[1764181521437,0.4512,3036.1,3036.0,0.2901]
[1764181521639,0.4512,3035.9,3035.8,0.47304112]
[1764181521843,0.16472,3036.1,3036.0,0.4681]
[1764181522044,0.4512,3035.9,3035.8,0.00494112]
[1764181523349,0.61593,3036.0,3035.9,0.4681]
[1764181523734,0.4512,3035.9,3035.8,0.47304112]
[1764181524450,0.4512,3035.9,3035.8,0.00494112]
[1764181525038,0.61594,3035.9,3035.8,0.00494112]
[1764181525246,0.4512,3035.9,3035.8,0.00494112]
[1764181525446,0.16473,3036.1,3035.8,0.47304112]
[1764181525647,0.4512,3035.9,3035.8,0.47304112]
[1764181526148,0.61593,3036.1,3035.8,0.00494112]
[1764181526640,0.61593,3036.1,3036.0,0.4681]
[1764181527437,0.4512,3035.9,3035.8,0.47304112]
[1764181528847,0.16473,3036.1,3035.8,0.47304112]
[1764181529048,0.61593,3036.1,3036.0,0.4681]
[1764181529250,0.4512,3035.9,3035.8,0.47304112]
[1764181529851,0.61593,3036.1,3036.0,0.4681]
[1764181530053,0.16473,3036.1,3036.0,0.7582]
[1764181530749,0.61593,3036.1,3036.0,0.7582]
[1764181531146,0.16473,3036.1,3036.0,0.7582]
[1764181531946,0.61593,3036.1,3036.0,0.7582]
[1764181533048,0.61593,3036.1,3036.0,0.4681]
[1764181533355,0.61594,3035.9,3035.8,0.00494112]
[1764181533853,1.18412419,3036.7,3036.6,0.4681]
[1764181534045,1.34879419,3037.2,3036.7,0.4681]
[1764181534256,0.4512,3036.8,3036.7,0.4681]
[1764181534547,0.4512,3036.6,3036.5,0.7582]
[1764181535352,0.4868,3036.6,3036.5,0.4681]
[1764181535751,0.4868,3036.6,3036.5,0.7425]
[1764181536254,0.16469,3036.8,3036.7,0.467]
[1764181536857,0.65149,3036.8,3036.7,0.467]
[1764181537347,0.4868,3036.6,3036.0,1.16173421]
[1764181538756,0.4868,3036.6,3036.5,0.7414]
[1764181539364,0.4868,3036.6,3036.5,0.467]
[1764181539658,0.4868,3036.6,3036.0,1.16173421]
[1764181540159,0.4868,3036.6,3036.0,0.2901]
[1764181540356,0.4868,3036.6,3036.0,1.16173421]
[1764181540553,0.4868,3036.6,3036.5,0.467]
[1764181541253,0.4868,3036.6,3036.5,0.7414]
[1764181541461,2.60754202,3036.9,3036.5,0.7414]
[1764181541857,0.16468,3036.9,3036.5,0.7414]
[1764181542252,0.65148,3036.9,3036.8,0.467]
[1764181543155,0.65148,3036.9,3036.5,0.2744]
[1764181544463,0.4868,3036.6,3036.5,0.7414]
[1764181544761,0.4868,3036.6,3036.5,0.467]
[1764181544960,0.4868,3036.6,3036.5,0.7414]
[1764181546857,0.4868,3036.9,3036.8,0.467]
[1764181547064,0.4868,3036.9,3036.5,0.2744]
[1764181547256,0.2696,3037.0,3036.5,0.2744]
[1764181547463,0.4868,3036.6,3036.5,0.7414]
[1764181547964,2.44286202,3036.9,3036.5,0.7414]
[1764181548164,0.4868,3036.6,3036.5,0.7414]
[1764181548767,2.44286202,3036.9,3036.5,0.7414]
[1764181549568,0.4868,3036.6,3036.1,3.793]
[1764181549763,0.4868,3036.6,3036.5,0.7414]
[1764181549968,2.44286202,3036.9,3036.5,0.7414]
[1764181550468,0.4868,3036.6,3036.5,0.7414]
[1764181552168,2.44286202,3036.9,3036.5,0.7414]
[1764181552765,0.43428,3037.0,3036.9,0.467]
[1764181552766,0.65148,3037.0,3036.9,0.467]
[1764181553369,0.65148,3037.0,3036.5,0.2744]
[1764181553667,0.92108,3037.0,3036.5,0.2744]
[1764181553861,0.4868,3036.6,3036.5,0.7414]
[1764181554066,2.87714202,3037.0,3036.5,0.7414]
[1764181556673,2.11441109,3036.7,3036.6,0.467]
[1764181560082,0.4868,3036.6,3036.5,0.2744]
[1764181560265,0.16468,3037.0,3036.6,0.467]
[1764181560470,0.65148,3037.0,3036.9,0.467]
[1764181560670,2.27909109,3037.0,3036.9,0.467]
[1764181560967,2.27909109,3037.0,3036.5,0.2744]
[1764181560968,0.00849016,3037.3,3037.0,0.2744]
[1764181561175,2.11441109,3037.2,3037.1,0.467]
[1764181561571,1e-08,3037.6,3037.5,0.7414]
[1764181561875,0.4868,3038.4,3038.3,0.467]
[1764181562075,2.11441109,3038.5,3038.0,0.2744]
[1764181562277,1.62761109,3038.2,3038.1,0.467]
[1764181562777,0.00494112,3038.5,3038.4,0.467]
[1764181563171,2.61604731,3039.5,3038.5,0.2744]
[1764181563172,2.03737397,3039.5,3038.5,0.2744]
[1764181563377,0.4868,3038.6,3038.1,0.8713517]
[1764181563572,0.2696,3039.0,3038.5,0.7414]
[1764181563872,0.27200735,3039.0,3038.5,0.7414]
[1764181564077,0.00240735,3039.0,3038.9,0.467]
[1764181564275,0.48920735,3039.0,3038.9,0.467]
[1764181564480,0.48920735,3039.0,3038.5,0.2744]
[1764181564670,0.48920735,3039.0,3038.9,0.467]
[1764181565174,0.00240735,3039.0,3038.9,0.467]
[1764181565978,0.2696,3040.0,3039.2,0.4584]
[1764181566183,0.2696,3040.5,3039.2,0.4584]
[1764181566184,2.43891989,3040.4,3039.2,0.4584]
[1764181566373,2.60340989,3040.4,3039.2,0.4584]
[1764181567075,0.00492422,3040.1,3039.5,0.29034112]
[1764181568476,0.47112422,3040.1,3040.0,0.7438]
[1764181568682,0.47112422,3040.1,3040.0,0.4584]
[1764181568883,0.00492422,3040.1,3040.0,0.7438]
[1764181569684,0.47112422,3040.1,3040.0,0.7438]
[1764181570083,0.00492422,3040.1,3040.0,0.7438]
[1764181571377,0.47112422,3040.1,3040.0,0.4584]
[1764181572077,0.47112422,3040.1,3039.5,0.29034112]
[1764181572273,0.4662,3039.6,3039.5,0.00494112]
[1764181572482,0.63073,3039.6,3039.5,0.00494112]
[1764181572885,0.00492422,3040.1,3039.7,0.4584]
[1764181573982,0.00492422,3040.1,3039.5,0.29034112]
[1764181573983,0.47112422,3040.1,3039.5,0.29034112]
[1764181574183,0.2885,3040.0,3039.5,0.29034112]
[1764181574386,0.4662,3039.6,3039.5,0.00494112]
[1764181574786,2.90511989,3039.6,3039.5,0.00494112]
[1764181575183,0.4662,3039.6,3039.5,0.46334112]
[1764181575488,2.90511989,3039.6,3039.5,0.00494112]
[1764181576179,0.2885,3040.0,3039.5,0.46334112]
[1764181576482,0.4662,3039.6,3039.5,0.00494112]
[1764181578077,0.00492422,3040.1,3039.5,0.74874112]
[1764181578676,0.00492422,3040.1,3040.0,0.7438]
[1764181579076,2.43891989,3040.7,3040.0,0.7438]
[1764181579077,2.43891989,3040.7,3040.3,0.4584]
[1764181579281,2.43891989,3040.7,3040.3,0.46074673]
[1764181579481,0.4695448,3040.4,3040.3,0.00234673]
[1764181579986,0.0033448,3040.4,3040.3,0.46074673]
[1764181580196,0.2885,3041.5,3040.3,0.46074673]
[1764181580197,2.43891989,3041.1,3040.3,0.46074673]
[1764181581382,0.16445,3041.2,3040.3,0.46074673]
[1764181582595,2.43891989,3041.1,3040.3,0.46074673]
[1764181582786,0.2696,3041.0,3040.3,0.46074673]
[1764181583286,2.43891989,3043.4,3042.6,0.4584]
[1764181583589,0.4662,3042.7,3042.6,0.00385235]
[1764181583793,0.2885,3043.5,3042.6,0.46225235]
[1764181583990,2.90511989,3042.7,3042.6,0.00385235]
[1764181584192,0.2885,3043.5,3042.6,0.46225235]
[1764181584591,2.72741989,3043.5,3042.6,0.46225235]
[1764181585193,0.4662,3042.7,3042.6,0.00385235]
[1764181585403,2.43891989,3042.7,3042.6,0.46225235]
[1764181585691,2.43891989,3043.1,3042.6,0.46225235]
[1764181585889,0.16434,3043.3,3042.6,0.46225235]
[1764181586198,2.72741989,3043.5,3042.6,0.46225235]
[1764181586491,0.4662,3042.7,3042.6,0.00385235]
[1764181586690,0.4662,3042.4,3041.0,0.2854]
[1764181587794,0.2815,3042.5,3041.6,0.00493274]
[1764181587795,0.00490484,3042.3,3041.6,0.00493274]
[1764181587991,0.4662,3041.7,3041.6,0.00493274]
[1764181588890,0.2836,3041.5,3040.5,0.2854]
[1764181589698,2.92316442,3041.6,3040.5,0.2854]
[1764181589891,0.16443,3041.6,3040.7,0.00493274]
[1764181590288,0.16444,3041.4,3040.7,0.00493274]
[1764181591497,0.2696,3042.0,3041.3,0.4584]
[1764181592999,0.1644,3042.1,3041.3,0.4584]
[1764181593500,0.43401,3042.0,3041.3,0.4584]
[1764181593890,0.43401,3042.0,3041.0,0.2854]
[1764181594289,0.16441,3042.0,3041.0,0.2854]
[1764181594890,0.16441,3042.0,3041.9,0.4584]
[1764181595391,0.63061,3042.0,3041.5,0.2854]
[1764181596897,0.89881,3042.0,3041.5,0.2854]
[1764181597201,0.4562,3041.6,3041.0,0.2854]
[1764181597398,0.2836,3041.5,3041.0,0.2854]
[1764181597604,0.2836,3041.5,3040.7,0.00493274]
[1764181597794,0.4562,3040.8,3040.7,0.00493274]
[1764181597995,0.62067,3040.8,3040.7,1e-08]
[1764181598195,0.16449,3040.5,3039.5,0.2731]
[1764181598503,0.44819,3040.5,3039.5,0.2731]
[1764181598695,0.16449,3040.4,3039.5,0.2731]
[1764181598893,0.1645,3040.3,3039.5,0.2731]
[1764181599200,0.00493274,3040.2,3039.6,0.00493274]
[1764181599397,0.4562,3039.7,3039.6,0.00493274]
[1764181599591,0.00493274,3040.2,3039.6,0.47353274]
[1764181600190,0.00493274,3040.2,3040.1,0.4686]
[1764181602409,0.4562,3039.7,3039.6,0.00493274]
[1764181602704,0.00493274,3040.2,3039.6,0.47353274]
[1764181603402,0.16451,3040.0,3039.6,0.00493274]
[1764181603608,0.4562,3039.7,3039.6,0.00493274]
[1764181604503,0.16451,3040.0,3039.6,0.47353274]
[1764181604704,0.00493274,3040.2,3039.6,0.47353274]
[1764181606400,0.00493274,3040.2,3040.1,0.4686]
[1764181608608,0.46113274,3040.2,3039.6,0.00493274]
[1764181608806,0.16456,3039.1,3038.6,0.86866188]
[1764181609001,0.16456,3039.1,3038.0,0.2731]
[1764181609802,0.16456,3039.1,3038.5,0.28225019]
[1764181611406,0.2836,3039.5,3038.5,0.28225019]
[1764181611905,0.4562,3038.6,3038.5,0.00915019]
[1764181612104,0.62079,3038.6,3038.5,0.00915019]
[1764181612412,0.62079,3038.6,3037.5,0.2731]
[1764181612413,0.16461,3038.3,3037.5,0.2731]
[1764181612706,0.4562,3037.6,3037.0,0.2731]
[1764181613013,0.2837,3038.4,3037.0,0.2731]
[1764181613509,0.00493274,3038.0,3037.4,0.00493274]
[1764181614110,0.00493274,3038.0,3037.9,0.4686]
[1764181614309,0.00493274,3038.0,3037.4,0.00493274]
[1764181615808,0.00493274,3038.0,3037.9,0.4686]
[1764181617009,2.75873442,3039.8,3038.4,0.2731]
[1764181617310,0.16455,3039.4,3038.4,0.2731]
[1764181617708,0.16455,3039.3,3038.4,0.2731]
[1764181618019,0.2863,3039.0,3037.8,0.2731]
[1764181618216,0.16456,3039.1,3037.8,0.2731]
[1764181619223,0.2863,3039.0,3037.8,0.2731]
[1764181619921,0.16456,3039.1,3037.8,0.2731]
[1764181622828,0.00493274,3039.2,3037.8,0.2731]
[1764181622829,0.00493274,3039.2,3039.1,0.4686]
[1764181623930,0.1645,3040.2,3039.2,0.4686]
[1764181624328,0.2863,3040.5,3039.2,0.4686]
[1764181624632,0.16448,3040.6,3039.2,0.4686]
[1764181625034,0.00493274,3040.2,3039.6,0.27803274]
[1764181625833,0.00257407,3040.6,3040.5,0.4654]
[1764181627226,0.16449,3040.4,3039.6,0.27803274]
[1764181627425,0.16449,3040.4,3039.6,0.00493274]
[1764181628941,0.4791,3039.7,3039.6,0.00493274]
[1764181629830,0.16451,3040.1,3039.6,0.00493274]
[1764181630032,0.4791,3039.7,3039.6,0.00493274]
[1764181635147,0.16451,3040.1,3039.6,0.00493274]
[1764181636246,0.4791,3039.7,3039.6,0.00493274]
[1764181637244,0.64363,3039.7,3039.6,0.00493274]
[1764181637937,0.4791,3039.3,3039.2,0.00427205]
[1764181639845,4.20474503,3040.0,3039.2,0.00427205]
[1764181640049,0.2761,3040.0,3039.2,0.48967205]
[1764181640239,0.16452,3039.9,3039.2,0.00427205]
[1764181640443,0.4791,3039.3,3039.2,0.00427205]
[1764181641346,1.16991061,3040.5,3040.4,0.4854]
[1764181641547,0.00257407,3040.6,3040.4,0.4854]
[1764181641947,0.00257407,3040.6,3040.5,0.4854]
[1764181642646,0.48167407,3040.6,3040.0,0.2741]
[1764181642842,0.48167407,3040.6,3039.7,0.86656705]
[1764181643248,0.00257407,3040.6,3040.5,0.4854]
[1764181644851,0.00257407,3040.6,3040.5,0.7595]
[1764181646555,0.48167407,3040.6,3039.9,0.86555208]
[1764181646751,0.2761,3040.5,3039.5,1.13965208]
[1764181648154,0.16705407,3040.6,3039.5,1.13965208]
[1764181648457,0.16705407,3040.6,3039.6,0.86555208]
[1764181648753,0.00257407,3040.6,3040.5,0.4854]
[1764181649854,0.00257407,3040.6,3040.0,0.2741]
[1764181650362,0.00257407,3040.6,3040.5,0.7595]
[1764181651659,0.00257407,3040.6,3040.0,0.2741]
[1764181652159,0.00257407,3040.6,3040.5,0.7595]
[1764181652354,1.61044061,3041.5,3040.5,0.7595]
[1764181652556,0.16444,3041.4,3040.5,0.7595]
[1764181652858,2.59946087,3041.2,3040.5,0.7595]
[1764181653461,2.60792825,3041.2,3040.5,0.76443274]
[1764181654266,0.17291738,3041.2,3040.5,0.76443274]
[1764181654659,0.17291738,3041.2,3041.1,0.4854]
[1764181654860,0.00846738,3041.2,3041.1,0.4854]
[1764181659376,0.00846738,3041.2,3041.0,0.2741]
[1764181659377,0.50206738,3041.2,3041.0,0.2741]
[1764181659765,0.00846738,3041.2,3041.1,0.4652]
[1764181660269,2.93707825,3041.2,3040.5,0.27903274]
[1764181660467,0.16446,3041.0,3040.5,0.27903274]
[1764181663167,0.16446,3041.0,3040.9,0.4652]
[1764181663573,0.65806,3041.0,3040.5,0.27903274]
[1764181663774,0.65806,3041.0,3040.5,0.00493274]
[1764181663775,0.4936,3040.6,3040.5,0.00493274]
[1764181664974,2.43501087,3040.8,3040.5,0.00493274]
[1764181664975,0.00846738,3041.2,3040.9,0.4652]
[1764181666179,0.4936,3041.0,3040.5,0.30153274]
[1764181666980,0.7758,3041.0,3040.5,0.30153274]
[1764181667581,0.4936,3041.0,3040.5,0.30153274]
[1764181667979,0.17291738,3041.2,3040.9,0.4652]
[1764181668681,0.17291738,3041.2,3039.2,0.8725875]
[1764181668682,6.91999571,3041.0,3039.2,0.8725875]
[1764181668882,2.43501087,3039.7,3039.5,0.2966]
[1764181669085,2.59952087,3040.1,3040.0,0.2966]
[1764181669282,0.16452,3040.0,3039.5,0.2966]
[1764181669482,2.43501087,3039.7,3039.5,0.2966]
[1764181669792,0.16452,3040.0,3039.6,0.4652]
[1764181671385,0.16452,3040.0,3039.9,0.4652]
[1764181672193,0.41792,3040.0,3039.5,0.2966]
[1764181673284,0.16452,3040.0,3039.5,0.2966]
[1764181674384,0.16452,3040.0,3039.9,0.4652]
[1764181674585,0.41792,3040.0,3039.5,0.2966]
[1764181674785,2.43501087,3039.7,3039.5,0.2966]
[1764181675786,0.16452,3039.9,3039.6,0.4652]
[1764181676292,0.16453,3039.8,3039.6,0.4652]
[1764181676994,0.16453,3039.8,3039.7,0.4652]
[1764181678095,0.41793,3039.8,3039.5,0.2966]
[1764181678591,0.16453,3039.8,3039.7,0.4652]
[1764181678785,0.41793,3039.8,3039.5,0.2966]
[1764181679798,0.16453,3039.8,3039.7,0.4652]
[1764181680191,0.41793,3039.8,3039.7,0.4652]
[1764181680394,0.2534,3039.6,3039.5,0.2966]
[1764181680692,2.43501087,3039.7,3038.5,0.2966]
[1764181680997,2.43501087,3039.1,3038.5,0.2966]
[1764181681187,0.2534,3038.6,3038.5,0.2966]
[1764181681387,2.43501087,3039.5,3038.7,0.4652]
[1764181681783,0.16455,3039.3,3038.8,0.00493274]
[1764181681995,0.2534,3038.9,3038.8,0.00493274]
[1764181682494,0.41797,3038.9,3038.8,0.00493274]
[1764181683097,0.1646,3038.5,3037.5,0.2966]
[1764181683299,0.2534,3038.1,3037.5,0.2966]
[1764181683503,2.43501087,3037.9,3037.5,0.2966]
[1764181683796,2.43501087,3038.1,3037.5,0.2966]
[1764181683996,1.178071,3038.5,3037.5,0.2966]
[1764181683997,0.16462,3038.2,3037.5,0.2966]
[1764181684204,2.43501087,3038.6,3037.5,0.30531651]
[1764181685389,0.16457,3038.9,3037.5,0.30531651]
[1764181685600,0.16458,3038.8,3037.5,0.30531651]
[1764181686191,2.43501087,3038.6,3037.5,0.30531651]
[1764181686391,0.1646,3038.5,3037.5,0.30531651]
[1764181687402,2.43501087,3039.1,3038.5,0.2783]
[1764181687904,0.00493274,3039.4,3039.3,0.4648]
[1764181688200,0.00493274,3039.4,3039.0,0.2783]
[1764181688201,0.00493274,3039.4,3039.0,0.28323274]
[1764181689693,0.00493274,3039.4,3039.3,0.4648]
[1764181690296,0.00493274,3039.4,3039.0,0.28323274]
[1764181690894,0.00493274,3039.4,3039.3,0.4648]
[1764181691094,0.00493274,3039.4,3039.0,0.28323274]
[1764181691290,0.2531,3039.1,3039.0,0.28323274]
[1764181691503,0.2531,3039.1,3039.0,0.00493274]
[1764181693010,0.2531,3039.1,3038.0,0.2783]
[1764181693303,2.59959087,3038.7,3038.0,0.2783]
[1764181694102,2.59959087,3038.7,3038.0,0.28161645]
[1764181694909,0.16948274,3039.4,3038.6,0.4648]
[1764181695108,2.43501087,3039.3,3038.6,0.4648]
[1764181695405,0.16456,3039.1,3038.6,0.4648]
[1764181695606,0.16456,3039.1,3038.5,0.2783]
[1764181697209,0.16458,3038.9,3038.5,0.2783]
[1764181697411,0.16458,3038.9,3038.8,0.4648]
[1764181697805,0.16458,3038.9,3038.5,0.2783]
[1764181698802,2.59959087,3038.9,3038.5,0.2783]
[1764181699707,0.2531,3038.6,3038.5,0.2783]
[1764181700802,2.59959087,3038.9,3038.5,0.2783]
[1764181701704,2.59959087,3038.9,3038.8,0.4648]
[1764181702211,2.85269087,3038.9,3038.5,0.2783]
[1764181703212,0.1646,3038.5,3038.0,0.28161645]
[1764181703913,0.1646,3038.5,3038.4,0.4648]
[1764181704724,0.16456,3039.1,3038.5,0.2783]
[1764181705008,0.2531,3038.6,3038.5,0.2783]
[1764181706406,0.16459,3038.7,3038.6,0.4648]
[1764181706711,0.2531,3038.6,3038.5,0.2783]
[1764181707613,0.41769,3038.6,3038.5,0.2783]
[1764181708311,0.16459,3038.6,3038.5,0.7431]
[1764181708815,0.41769,3038.6,3038.5,0.2783]
[1764181709812,0.16459,3038.6,3038.5,0.7431]
[1764181710113,1.76777397,3039.1,3038.5,0.7431]
[1764181710114,1.178071,3039.1,3038.5,0.7431]
[1764181710307,0.16456,3039.1,3039.0,0.2783]
[1764181711012,0.41766,3039.1,3039.0,0.2783]
[1764181711218,0.16459,3038.6,3038.5,0.7431]
[1764181711418,0.41769,3038.6,3038.5,0.2783]
[1764181712319,0.16459,3038.6,3038.5,0.7431]
[1764181714021,0.41769,3038.6,3038.5,0.2783]
[1764181714915,2.76369727,3038.8,3038.0,0.28161645]
[1764181714916,0.16461,3038.2,3038.1,0.4648]
[1764181715621,0.41792,3038.1,3038.0,0.28161645]
[1764181715923,0.41792,3038.1,3038.0,0.00331645]
[1764181717023,0.41792,3038.1,3038.0,0.29141645]
[1764181717219,0.16462,3038.1,3038.0,0.76621645]
[1764181718119,1.178071,3038.9,3038.6,0.4748]
[1764181719414,0.16458,3038.7,3038.6,0.4748]
[1764181719811,0.2533,3038.6,3038.0,0.29141645]
[1764181720019,1.342641,3038.9,3038.5,0.2881]
[1764181720222,1.342641,3038.9,3038.8,0.4748]
[1764181720223,0.16457,3038.9,3038.8,0.4748]
[1764181720720,0.16459,3038.6,3038.5,0.2881]
[1764181720927,0.41789,3038.6,3038.5,0.2881]
[1764181721310,0.16459,3038.6,3038.5,0.7629]
[1764181722623,0.41789,3038.6,3038.5,0.2881]
[1764181722928,0.16459,3038.6,3038.5,0.7629]
[1764181724321,2.76369727,3038.6,3038.2,0.4748]
[1764181725026,0.16461,3038.3,3038.2,0.4748]
[1764181728522,0.16462,3038.1,3038.0,0.29141645]
[1764181728721,0.41792,3038.1,3038.0,0.29141645]
[1764181729124,3.18161727,3038.1,3038.0,0.00331645]
[1764181730021,0.16462,3038.1,3038.0,0.76621645]
[1764181731032,2.92831727,3038.1,3038.0,0.29141645]
[1764181731828,3.18161727,3038.1,3038.0,0.29141645]
[1764181733322,3.18161727,3038.1,3038.0,0.00331645]
[1764181733929,0.41794,3037.6,3037.5,0.00378377]
[1764181734124,3.18163727,3037.6,3037.5,0.00378377]
[1764181735431,3.18163727,3037.6,3037.0,0.2783]
[1764181735432,0.41797,3037.1,3037.0,0.2783]
[1764181736433,0.16746556,3037.1,3037.0,0.75586609]
[1764181736932,0.00279556,3037.1,3037.0,0.75586609]
[1764181737124,0.16464,3037.7,3037.6,0.4748]
[1764181737325,0.16464,3037.6,3037.5,0.2881]
[1764181737526,0.16464,3037.6,3037.5,0.7629]
[1764181738129,0.16890842,3037.6,3037.5,0.7629]
[1764181740834,0.42500842,3037.6,3037.5,0.7629]
[1764181741134,0.16890842,3037.6,3037.5,0.7629]
[1764181741930,0.00426842,3037.6,3037.5,0.7629]
[1764181742138,0.00493274,3037.9,3037.8,0.4748]
[1764181742344,0.16956274,3037.9,3037.8,0.4748]
[1764181743136,0.1725697,3037.9,3037.8,0.4748]
[1764181743533,2.76369727,3038.7,3037.8,0.4748]
[1764181743534,3.94597763,3038.7,3037.8,0.4748]
[1764181743738,3.94597763,3038.7,3037.5,0.2881]
[1764181743739,0.16461,3038.3,3038.2,0.4748]
[1764181744337,0.59751,3038.3,3038.2,0.4748]
[1764181744643,0.16462,3038.1,3038.0,0.7629]
[1764181745545,0.00256755,3038.3,3038.2,0.4748]
[1764181745944,0.16952274,3038.6,3038.5,0.7482]
[1764181746838,1.77342055,3039.3,3039.0,0.2893]
[1764181746839,1.18228036,3039.3,3039.0,0.2893]
[1764181747143,0.16456,3039.1,3039.0,0.7482]